bitfinex-derivatives/quotes_SOLF0:USTF0_20241215
["timestamp","ask_amount","ask_price","bid_price","bid_amount"]
[1734272650943,0.82944,220.85,220.83,2.2649]
[1734272652234,0.82944,220.85,220.78,2.06]
[1734272652937,0.82944,220.85,220.8,2.2652]
[1734272653140,0.82944,220.85,220.78,2.06]
[1734272654335,0.82944,220.85,220.8,2.2652]
[1734272654540,0.82944,220.85,220.78,2.06]
[1734272655437,0.82944,220.85,220.83,2.2649]
[1734272658442,0.82944,220.85,220.84,2.2648]
[1734272660143,0.82944,220.85,220.82,5.46315252]
[1734272660445,0.82944,220.85,220.83,2.2649]
[1734272662148,0.82944,220.85,220.82,7.72815252]
[1734272664647,0.82944,220.85,220.73,1.5222]
[1734272664648,0.82944,220.85,220.73,3.5822]
[1734272664839,2.88944,220.85,220.73,3.5822]
[1734272666251,2.88944,220.85,220.77,5.36393541]
[1734272666547,2.2651,220.82,220.77,5.36393541]
[1734272666847,2.88944,220.85,220.77,5.36393541]
[1734272667044,2.88944,220.85,220.78,2.2654]
[1734272667349,2.88944,220.85,220.77,7.42393541]
[1734272667549,0.82944,220.85,220.77,7.42393541]
[1734272667749,0.82944,220.85,220.8,2.2651]
[1734272669742,0.82944,220.85,220.78,2.2654]
[1734272669743,2.2649,220.83,220.78,2.2654]
[1734272670149,2.2649,220.83,220.77,5.36393541]
[1734272670351,2.2649,220.83,220.77,7.62943541]
[1734272671149,2.06,220.84,220.77,5.36393541]
[1734272672353,2.265,220.82,220.77,7.62943541]
[1734272674255,2.06,220.84,220.77,5.36393541]
[1734272675452,2.06,220.84,220.8,2.2651]
[1734272675854,2.06,220.84,220.77,5.36393541]
[1734272677453,2.06,220.84,220.8,2.2652]
[1734272680568,2.06,220.84,220.77,5.36393541]
[1734272680761,2.2653,220.8,220.74,2.06]
[1734272680962,2.2653,220.8,220.75,5.17286466]
[1734272681160,2.2653,220.8,220.76,5.17286466]
[1734272681359,5.0943,220.84,220.73,1.5222]
[1734272681558,2.2651,220.81,220.76,2.2656]
[1734272681758,5.0943,220.84,220.73,1.5222]
[1734272681961,5.0943,220.84,220.74,5.17487628]
[1734272682158,5.0943,220.84,220.75,5.17487628]
[1734272682353,5.0943,220.84,220.74,2.2658]
[1734272682555,5.0943,220.84,220.74,7.57540889]
[1734272682761,2.2654,220.79,220.75,5.17653762]
[1734272682955,2.2654,220.79,220.74,7.57540889]
[1734272683262,2.2654,220.79,220.75,5.17667081]
[1734272683464,2.2654,220.79,220.74,7.57540889]
[1734272683658,2.2654,220.79,220.75,5.1772405]
[1734272683853,2.2654,220.79,220.74,7.57540889]
[1734272684262,2.2656,220.77,220.72,2.266]
[1734272684561,2.2656,220.77,220.73,5.17986637]
[1734272684762,2.2655,220.78,220.71,2.2662]
[1734272684962,2.2655,220.78,220.72,5.18007329]
[1734272685167,2.2655,220.78,220.71,2.2662]
[1734272685363,2.06,220.78,220.73,2.2659]
[1734272685565,2.06,220.78,220.71,5.42710459]
[1734272685765,2.06,220.81,220.72,13.46590281]
[1734272685962,2.06,220.81,220.75,2.2656]
[1734272686366,2.06,220.81,220.72,2.06]
[1734272686566,2.06,220.81,220.73,13.46462104]
[1734272686768,2.06,220.81,220.74,13.46462104]
[1734272686964,2.06,220.81,220.75,5.1787004]
[1734272687165,2.06,220.81,220.76,5.1787004]
[1734272687365,2.06,220.81,220.77,7.44685526]
[1734272687660,2.06,220.81,220.77,2.2655]
[1734272688265,2.2652,220.8,220.75,2.2657]
[1734272688466,2.2652,220.8,220.76,5.18287574]
[1734272688770,2.2652,220.8,220.75,2.2657]
[1734272689069,4.3252,220.8,220.76,5.18284868]
[1734272689273,4.3252,220.8,220.75,2.2657]
[1734272689465,4.3252,220.8,220.76,5.18448902]
[1734272689666,2.06,220.8,220.77,5.18448902]
[1734272689972,2.06,220.8,220.72,3.5677]
[1734272690166,2.06,220.8,220.76,2.2656]
[1734272690367,2.06,220.8,220.77,5.18433953]
[1734272690662,2.06,220.8,220.78,5.18433953]
[1734272690861,2.06,220.8,220.78,2.2654]
[1734272691365,2.06,220.8,220.79,5.187323]
[1734272691570,2.06,220.83,220.79,5.187323]
[1734272691771,2.06,220.83,220.78,2.2654]
[1734272691974,4.3248,220.84,220.79,7.45147395]
[1734272692163,2.06,220.84,220.72,5.1128]
[1734272692371,2.06,220.84,220.72,6.6657]
[1734272692670,2.06,220.84,220.73,13.48137]
[1734272692868,2.06,220.84,220.74,13.48137]
[1734272693172,2.06,220.84,220.75,13.48137]
[1734272693369,2.06,220.84,220.76,13.48137]
[1734272693572,2.06,220.84,220.77,13.48137]
[1734272693869,2.06,220.84,220.78,13.48137]
[1734272694070,2.06,220.84,220.79,5.18514231]
[1734272694369,2.06,220.84,220.72,6.6657]
[1734272694564,2.06,220.84,220.79,2.2652]
[1734272694971,2.06,220.84,220.8,5.18133792]
[1734272695163,2.06,220.84,220.79,2.2652]
[1734272695366,2.06,220.84,220.8,5.18134134]
[1734272695572,2.06,220.84,220.79,2.2652]
[1734272695770,2.06,220.84,220.8,5.18126774]
[1734272696074,2.06,220.84,220.79,2.2652]
[1734272696273,2.06,220.84,220.8,5.18151613]
[1734272696466,2.06,220.84,220.79,2.2652]
[1734272696667,2.06,220.84,220.8,5.18168341]
[1734272696867,2.06,220.84,220.8,2.2652]
[1734272697565,2.265,220.83,220.78,2.2654]
[1734272697868,2.265,220.83,220.79,5.18278857]
[1734272698078,2.265,220.83,220.72,6.6657]
[1734272698373,2.265,220.83,220.78,2.2654]
[1734272698566,2.06,220.84,220.79,5.18441025]
[1734272698771,2.06,220.84,220.73,2.2659]
[1734272698971,2.06,220.84,220.74,5.18677027]
[1734272699174,2.2652,220.81,220.71,5.42710459]
[1734272699375,2.06,220.8,220.73,2.2659]
[1734272699577,2.06,220.79,220.74,5.18722714]
[1734272699777,2.06,220.78,220.73,2.2659]
[1734272699977,2.06,220.77,220.74,5.18647324]
[1734272700277,2.06,220.77,220.73,2.2659]
[1734272700582,2.2657,220.76,220.74,5.18421536]
[1734272700873,2.06,220.77,220.64,5.46058465]
[1734272701176,2.2661,220.72,220.66,2.2666]
[1734272701377,2.06,220.71,220.67,13.48549587]
[1734272701577,2.06,220.71,220.68,15.75199587]
[1734272701776,2.06,220.71,220.69,5.18672918]
[1734272701978,2.06,220.71,220.64,5.46058465]
[1734272702171,2.06,220.71,220.65,13.47768361]
[1734272702372,2.06,220.71,220.66,13.47768361]
[1734272702569,2.06,220.71,220.67,5.18372446]
[1734272702771,2.06,220.71,220.68,5.18372446]
[1734272702972,2.06,220.71,220.64,5.46058465]
[1734272703173,2.06,220.71,220.65,13.4709583]
[1734272703369,2.06,220.71,220.64,5.46058465]
[1734272703370,2.06,220.71,220.67,2.2665]
[1734272703573,2.06,220.71,220.68,5.18113781]
[1734272703773,2.06,220.71,220.64,5.46058465]
[1734272703984,2.06,220.71,220.68,2.2665]
[1734272705179,3.6942,220.75,220.64,5.46058465]
[1734272705180,3.4884,220.75,220.64,5.46058465]
[1734272705373,3.4884,220.75,220.65,13.46022676]
[1734272705571,3.4884,220.75,220.66,13.46022676]
[1734272705774,3.4884,220.75,220.65,2.2668]
[1734272706078,2.266,220.73,220.66,5.1789606]
[1734272706374,3.4884,220.75,220.65,2.2668]
[1734272706578,3.4884,220.75,220.66,5.17740972]
[1734272706771,3.4884,220.75,220.65,2.2668]
[1734272706976,3.4884,220.75,220.57,2.909]
[1734272706977,2.2661,220.72,220.62,5.48047218]
[1734272707177,2.06,220.71,220.63,13.46102937]
[1734272707380,2.06,220.71,220.64,13.46102937]
[1734272707580,2.06,220.71,220.65,5.17732517]
[1734272707878,2.06,220.71,220.66,5.17732517]
[1734272708079,2.06,220.71,220.62,5.48047218]
[1734272708276,2.06,220.71,220.63,13.45844403]
[1734272708476,2.06,220.71,220.64,13.45844403]
[1734272708774,2.06,220.71,220.65,5.17632463]
[1734272709081,2.06,220.71,220.66,5.17632463]
[1734272709273,2.06,220.71,220.66,2.2666]
[1734272709476,2.2665,220.68,220.62,5.48047218]
[1734272709674,2.06,220.67,220.63,5.17731078]
[1734272709878,1.412,220.74,220.52,2.06]
[1734272709879,2.06,220.66,220.52,2.06]
[1734272710079,2.06,220.65,220.53,15.52954342]
[1734272710283,2.06,220.64,220.52,2.06]
[1734272710586,4.327,220.63,220.54,8.28984397]
[1734272710782,2.06,220.62,220.53,13.47099645]
[1734272710976,2.06,220.62,220.55,8.28984397]
[1734272711171,2.06,220.62,220.56,13.47099645]
[1734272711382,2.06,220.62,220.59,2.2674]
[1734272711579,2.06,220.62,220.6,5.18115248]
[1734272711778,2.06,220.62,220.56,5.50847526]
[1734272711975,2.06,220.62,220.57,13.45938914]
[1734272712183,2.06,220.62,220.56,5.50847526]
[1734272712184,2.06,220.62,220.58,13.45938914]
[1734272712386,2.06,220.62,220.59,5.17668813]
[1734272712678,2.06,220.62,220.6,5.17668813]
[1734272712883,2.06,220.62,220.56,5.50847526]
[1734272713074,2.06,220.62,220.57,13.45407051]
[1734272713386,2.06,220.62,220.58,5.1746425]
[1734272713683,2.06,220.62,220.6,2.2673]
[1734272715575,2.06,220.68,220.56,5.50847526]
[1734272715878,2.06,220.68,220.57,20.12622227]
[1734272716078,2.06,220.68,220.58,13.44282227]
[1734272716285,2.06,220.68,220.65,2.2668]
[1734272716583,2.2663,220.7,220.65,2.2668]
[1734272716881,2.06,220.69,220.65,2.2668]
[1734272717184,2.06,220.69,220.57,6.6834]
[1734272717390,2.2659,220.74,220.58,13.43305615]
[1734272717579,2.2659,220.74,220.59,13.43305615]
[1734272717780,2.06,220.73,220.6,13.43305615]
[1734272717976,2.06,220.73,220.61,15.49305615]
[1734272718182,2.06,220.73,220.62,13.43305615]
[1734272718382,2.06,220.73,220.63,13.43305615]
[1734272718583,4.326,220.73,220.64,5.16656006]
[1734272718781,4.326,220.73,220.65,5.16656006]
[1734272718987,4.326,220.73,220.61,2.06]
[1734272719186,4.326,220.73,220.62,13.43167538]
[1734272719398,4.326,220.73,220.63,13.43167538]
[1734272719679,4.326,220.73,220.67,2.2665]
[1734272720085,4.326,220.73,220.61,2.06]
[1734272720288,4.326,220.73,220.68,2.2664]
[1734272723579,2.06,220.73,220.68,2.2664]
[1734272723790,2.06,220.73,220.57,4.6234]
[1734272723987,2.06,220.73,220.58,15.49537556]
[1734272724288,2.06,220.73,220.59,13.43537556]
[1734272724490,2.06,220.73,220.6,13.43537556]
[1734272724791,2.06,220.73,220.61,5.16745214]
[1734272724985,2.2665,220.68,220.57,4.6234]
[1734272725185,2.06,220.67,220.58,13.44425795]
[1734272725483,2.06,220.67,220.59,5.17086844]
[1734272725679,2.06,220.67,220.57,1.5515]
[1734272725890,2.06,220.67,220.58,5.17187811]
[1734272726092,4.3267,220.67,220.61,2.2672]
[1734272726388,2.06,220.67,220.57,1.5515]
[1734272726890,2.2669,220.65,220.6,2.2673]
[1734272729086,2.06,220.67,220.57,1.5515]
[1734272729291,2.06,220.67,220.58,5.17068628]
[1734272729593,2.06,220.69,220.68,2.2665]
[1734272729885,2.06,220.69,220.57,3.6115]
[1734272730086,2.06,220.69,220.6,1.4267]
[1734272730290,2.06,220.69,220.68,2.2665]
[1734272731889,2.06,220.71,220.68,2.2665]
[1734272733099,2.06,220.71,220.69,2.2663]
[1734272733393,2.06,220.71,220.61,2.06]
[1734272733593,2.06,220.71,220.62,14.88852882]
[1734272733792,2.06,220.72,220.63,13.43662882]
[1734272733994,2.06,220.72,220.64,13.43662882]
[1734272734195,2.06,220.72,220.67,2.2666]
[1734272734396,2.06,220.72,220.62,1.4519]
[1734272734693,2.06,220.72,220.63,13.43366397]
[1734272734895,2.06,220.72,220.7,2.2662]
[1734272735091,1.4284,220.75,220.62,1.4519]
[1734272735297,2.06,220.74,220.63,13.43273173]
[1734272735495,2.06,220.74,220.64,13.43273173]
[1734272735687,2.06,220.74,220.65,13.43273173]
[1734272735897,2.06,220.74,220.72,2.2661]
[1734272736497,2.06,220.74,220.73,2.266]
[1734272736698,2.06,220.75,220.73,2.266]
[1734272737695,2.06,220.75,220.71,2.2661]
[1734272738897,2.06,220.75,220.72,2.266]
[1734272739097,2.06,220.75,220.65,2.06]
[1734272739297,2.06,220.75,220.7,2.2662]
[1734272740196,2.06,220.75,220.71,2.2661]
[1734272741999,2.06,220.75,220.68,5.36738949]
[1734272742197,1.5152,220.83,220.69,5.177017]
[1734272742395,2.2651,220.82,220.7,13.46245962]
[1734272742696,1.5152,220.83,220.71,13.46245962]
[1734272742892,2.06,220.82,220.78,2.2654]
[1734272743300,2.06,220.81,220.7,1.4611]
[1734272743594,2.06,220.81,220.71,13.4604508]
[1734272743798,2.06,220.81,220.72,13.4604508]
[1734272743994,2.06,220.81,220.73,13.4604508]
[1734272744199,2.06,220.81,220.74,13.4604508]
[1734272744502,2.06,220.81,220.75,5.17709646]
[1734272744801,2.06,220.81,220.76,5.17709646]
[1734272745002,2.06,220.81,220.7,1.4611]
[1734272745201,2.06,220.81,220.71,13.45810722]
[1734272745393,2.06,220.81,220.78,2.2654]
[1734272746301,2.06,220.81,220.77,2.2655]
[1734272746799,2.06,220.81,220.73,2.2659]
[1734272747000,2.06,220.81,220.69,1.5187]
[1734272747202,2.06,220.81,220.7,13.45353087]
[1734272747399,2.06,220.81,220.71,13.45353087]
[1734272747599,2.06,220.81,220.72,5.17443495]
[1734272747902,2.06,220.81,220.73,5.17443495]
[1734272748199,2.2655,220.78,220.69,1.5187]
[1734272748503,2.06,220.77,220.7,13.44932975]
[1734272748704,2.06,220.77,220.71,5.17281913]
[1734272748898,2.06,220.77,220.72,5.17281913]
[1734272749106,2.06,220.77,220.69,1.5187]
[1734272749407,2.06,220.77,220.7,13.44818171]
[1734272749601,2.06,220.77,220.69,1.5187]
[1734272749808,2.06,220.77,220.7,13.44508403]
[1734272750002,2.06,220.77,220.71,5.17133325]
[1734272750210,2.06,220.77,220.72,5.17133325]
[1734272750410,2.06,220.77,220.75,2.2657]
[1734272752507,2.06,220.77,220.69,1.5187]
[1734272752814,2.06,220.77,220.76,2.2656]
[1734272757314,2.06,220.79,220.78,2.2654]
[1734272757909,2.06,220.79,220.77,2.2655]
[1734272759612,2.06,220.79,220.71,5.49970647]
[1734272759813,2.06,220.79,220.72,5.17292543]
[1734272760014,2.06,220.79,220.65,3.4832]
[1734272760214,2.2655,220.78,220.72,2.266]
[1734272761014,2.06,220.79,220.65,3.4832]
[1734272761217,2.06,220.79,220.66,13.45200974]
[1734272761416,2.06,220.79,220.69,5.51355735]
[1734272761618,2.06,220.79,220.7,13.45200974]
[1734272761821,2.06,220.79,220.71,13.45200974]
[1734272762018,2.06,220.79,220.72,5.1738499]
[1734272762315,2.06,220.79,220.73,5.1738499]
[1734272762519,2.06,220.79,220.75,2.2657]
[1734272763218,2.06,220.79,220.78,2.2654]
[1734272763418,2.06,220.79,220.69,5.51355735]
[1734272763724,2.06,220.79,220.7,13.44856833]
[1734272763932,2.06,220.79,220.69,5.51355735]
[1734272764215,2.06,220.79,220.71,8.27661812]
[1734272764417,2.06,220.79,220.72,5.17288632]
[1734272764617,2.06,220.79,220.73,5.17288632]
[1734272764813,2.06,220.79,220.69,5.51355735]
[1734272765013,2.06,220.79,220.7,13.45015958]
[1734272765317,2.06,220.79,220.71,13.45015958]
[1734272765523,2.06,220.79,220.75,2.2657]
[1734272770416,2.06,220.79,220.72,2.2661]
[1734272770622,2.06,220.79,220.73,5.17577435]
[1734272770825,2.06,220.79,220.69,5.51355735]
[1734272771023,2.06,220.79,220.7,13.45684057]
[1734272771327,2.06,220.78,220.71,13.45684057]
[1734272771521,2.06,220.78,220.75,2.2657]
[1734272771926,2.06,220.78,220.69,5.51355735]
[1734272772127,2.06,220.78,220.7,13.46325422]
[1734272772318,2.06,220.78,220.71,13.46325422]
[1734272772520,2.06,220.78,220.72,5.1781747]
[1734272772729,2.2656,220.77,220.71,2.2661]
[1734272773627,4.3254,220.78,220.73,2.2659]
[1734272773828,2.06,220.78,220.72,5.18540088]
[1734272774325,2.266,220.73,220.72,5.18540088]
[1734272774531,4.326,220.73,220.72,0.52160088]
[1734272774929,4.326,220.73,220.64,2.2668]
[1734272774930,2.2663,220.7,220.64,2.2668]
[1734272775127,2.06,220.69,220.64,2.2668]
[1734272775332,2.06,220.69,220.65,8.30867605]
[1734272776425,2.06,220.73,220.7,2.2662]
[1734272776621,2.06,220.72,220.7,2.2662]
[1734272777225,2.06,220.72,220.71,2.2662]
[1734272778227,2.06,220.72,220.69,2.2663]
[1734272778934,2.06,220.72,220.62,2.06]
[1734272779235,2.06,220.74,220.62,2.06]
[1734272779434,2.06,220.75,220.72,2.266]
[1734272779640,2.06,220.76,220.72,2.266]
[1734272780134,2.06,220.76,220.62,2.06]
[1734272780333,2.06,220.76,220.71,2.2662]
[1734272780838,2.06,220.76,220.62,2.06]
[1734272781136,2.06,220.76,220.72,2.266]
[1734272781334,2.06,220.76,220.62,2.06]
[1734272781635,2.06,220.76,220.63,2.06]
[1734272782031,2.06,220.76,220.64,2.997]
[1734272782229,2.06,220.76,220.72,2.266]
[1734272783139,2.06,220.76,220.7,2.2663]
[1734272783738,2.266,220.73,220.67,2.2666]
[1734272783938,2.06,220.72,220.67,2.2666]
[1734272784239,49.90592259,220.8,220.67,2.2666]
[1734272784240,2.06,220.71,220.67,2.2666]
[1734272784539,49.90592259,220.8,220.65,1.4393]
[1734272784540,7.05801734,220.79,220.65,1.4393]
[1734272784738,2.06,220.78,220.65,1.4393]
[1734272784933,2.2656,220.77,220.65,1.4393]
[1734272785142,2.2656,220.77,220.68,2.2664]
[1734272785341,2.2656,220.77,220.65,1.4393]
[1734272785644,2.2656,220.77,220.65,3.4993]
[1734272785846,2.2656,220.77,220.71,2.2661]
[1734272786243,2.06,220.76,220.71,2.2661]
[1734272786845,2.06,220.76,220.72,5.12739333]
[1734272787137,2.06,220.77,220.65,3.4993]
[1734272787339,2.06,220.77,220.66,5.12732791]
[1734272787535,2.06,220.77,220.67,5.12732791]
[1734272787736,2.06,220.77,220.68,5.12732791]
[1734272787941,2.06,220.77,220.69,5.12732791]
[1734272788142,2.06,220.77,220.7,5.12732791]
[1734272788344,5.43006927,220.84,220.71,5.12732791]
[1734272788545,5.43006927,220.84,220.76,2.2656]
[1734272788546,2.2651,220.82,220.76,2.2656]
[1734272789547,2.06,220.83,220.77,2.2655]
[1734272790135,2.265,220.82,220.77,2.2655]
[1734272791243,2.06,220.81,220.69,2.06]
[1734272791447,2.06,220.8,220.7,5.12545875]
[1734272791646,2.06,220.8,220.71,5.12545875]
[1734272791945,2.06,220.8,220.72,5.12545875]
[1734272792248,2.06,220.8,220.67,2.06]
[1734272792249,2.06,220.8,220.73,5.12545875]
[1734272792449,2.06,220.8,220.74,5.12545875]
[1734272792746,2.2654,220.78,220.7,2.2662]
[1734272792946,2.2654,220.78,220.71,5.12622787]
[1734272793145,2.2654,220.78,220.72,5.12622787]
[1734272793342,2.2654,220.78,220.73,5.12622787]
[1734272793543,2.06,220.77,220.67,2.06]
[1734272793850,2.06,220.77,220.68,5.12655064]
[1734272794040,2.06,220.77,220.69,5.12655064]
[1734272794348,2.06,220.77,220.7,5.12655064]
[1734272794543,2.06,220.77,220.71,5.12655064]
[1734272794848,2.06,220.77,220.72,5.12655064]
[1734272795147,2.06,220.77,220.73,5.12859078]
[1734272795343,2.06,220.77,220.74,5.12859078]
[1734272795549,2.06,220.77,220.66,2.06]
[1734272795738,2.06,220.77,220.67,5.12804688]
[1734272795938,2.06,220.77,220.68,5.12804688]
[1734272796146,2.06,220.77,220.69,5.12804688]
[1734272796443,2.06,220.77,220.74,2.2658]
[1734272796649,2.06,220.77,220.75,5.12804688]
[1734272796949,2.06,220.77,220.74,2.2658]
[1734272797243,2.06,220.77,220.75,5.1272197]
[1734272797451,2.06,220.77,220.71,2.2661]
[1734272797746,2.06,220.77,220.72,5.12758324]
[1734272797948,2.06,220.77,220.73,5.12758324]
[1734272798141,2.06,220.77,220.74,5.12758324]
[1734272798349,2.06,220.77,220.7,2.2663]
[1734272798541,2.06,220.77,220.71,5.12808022]
[1734272798842,2.06,220.77,220.72,5.12808022]
[1734272799043,2.06,220.77,220.7,2.2663]
[1734272799247,2.2657,220.76,220.71,5.128807]
[1734272799547,2.06,220.77,220.69,2.2664]
[1734272799737,2.06,220.77,220.7,5.1289984]
[1734272799942,2.2658,220.75,220.7,7.3951984]
[1734272800145,2.2658,220.75,220.71,5.1289984]
[1734272800340,2.2658,220.75,220.7,2.2662]
[1734272800544,2.2658,220.75,220.71,5.12928952]
[1734272800741,2.2658,220.75,220.7,2.2662]
[1734272800953,2.06,220.77,220.73,2.2659]
[1734272801849,2.06,220.77,220.65,1.4393]
[1734272802049,2.06,220.77,220.74,2.2658]
[1734272804050,2.06,220.77,220.65,1.4393]
[1734272804250,2.06,220.77,220.66,5.12913671]
[1734272804451,2.06,220.77,220.67,5.12913671]
[1734272804648,2.06,220.77,220.68,7.18913671]
[1734272804850,7.0581486,220.83,220.69,5.12913671]
[1734272804851,2.06,220.79,220.69,5.12913671]
[1734272805056,50.50369338,220.85,220.7,5.12913671]
[1734272805057,2.06,220.81,220.7,5.12913671]
[1734272805252,2.06,220.82,220.71,5.12913671]
[1734272805452,2.06,220.82,220.72,8.08443671]
[1734272805653,2.06,220.82,220.73,6.64093671]
[1734272805953,2.06,220.82,220.74,5.12913671]
[1734272806148,2.06,220.82,220.77,2.2655]
[1734272806355,0.847,220.87,220.73,3.5718]
[1734272806553,2.06,220.86,220.74,5.12547644]
[1734272806757,2.06,220.86,220.75,5.12547644]
[1734272806955,2.06,220.86,220.76,5.12547644]
[1734272807153,2.06,220.86,220.77,5.12547644]
[1734272807350,2.06,220.86,220.78,5.12547644]
[1734272807554,2.2647,220.85,220.79,7.39077644]
[1734272807756,2.2647,220.85,220.8,5.12547644]
[1734272807958,2.2647,220.85,220.79,2.2653]
[1734272808151,2.2647,220.85,220.8,5.12353752]
[1734272808351,2.06,220.86,220.73,3.5718]
[1734272808559,2.06,220.86,220.82,2.265]
[1734272811256,4.3246,220.86,220.8,2.2651]
[1734272811455,0.847,220.87,220.8,2.2651]
[1734272812457,2.2647,220.85,220.8,2.2651]
[1734272812658,2.2647,220.85,220.81,2.2651]
[1734272813054,3.1116,220.87,220.81,2.2651]
[1734272814262,2.2646,220.86,220.81,2.2651]
[1734272814758,2.2646,220.86,220.77,7.45155312]
[1734272814759,2.2646,220.86,220.82,2.265]
[1734272815859,2.2646,220.86,220.8,2.2651]
[1734272816061,0.847,220.87,220.8,2.2651]
[1734272816358,2.2647,220.85,220.8,2.2651]
[1734272816563,0.847,220.87,220.77,7.45155312]
[1734272816759,2.2649,220.84,220.77,7.45155312]
[1734272817259,2.2649,220.84,220.78,2.2654]
[1734272817660,2.2651,220.82,220.76,2.2656]
[1734272817860,2.06,220.83,220.73,1.5118]
[1734272818057,2.06,220.83,220.75,5.40466189]
[1734272819564,2.2653,220.8,220.75,5.40466189]
[1734272820559,2.06,220.83,220.75,5.40466189]
[1734272820764,2.06,220.83,220.73,1.5118]
[1734272820968,2.06,220.83,220.72,5.2213]
[1734272821371,2.2655,220.78,220.72,5.2213]
[1734272821573,2.2655,220.78,220.73,7.75744586]
[1734272822971,11.43201051,220.86,220.71,2.2661]
[1734272822972,2.2657,220.76,220.71,2.2661]
[1734272823163,2.06,220.75,220.71,2.2661]
[1734272823367,2.06,220.75,220.72,5.11983764]
[1734272823568,2.06,220.75,220.71,2.2661]
[1734272823966,2.06,220.75,220.7,5.31498625]
[1734272824165,4.3258,220.75,220.71,5.12060008]
[1734272824368,4.3258,220.75,220.7,7.58128625]
[1734272824566,4.3258,220.75,220.71,5.12055426]
[1734272824770,4.3258,220.75,220.7,7.58128625]
[1734272825174,4.3258,220.75,220.71,5.1207013]
[1734272825373,4.3258,220.75,220.7,7.58128625]
[1734272825569,2.2659,220.74,220.69,1.447]
[1734272825774,2.2659,220.74,220.7,5.12003119]
[1734272826073,2.06,220.75,220.66,2.9529]
[1734272827475,2.06,220.75,220.66,5.2196]
[1734272827476,2.2662,220.72,220.66,5.2196]
[1734272827676,2.2662,220.72,220.66,2.2667]
[1734272827677,2.06,220.71,220.66,2.2667]
[1734272828069,4.3262,220.71,220.66,2.2667]
[1734272829173,4.3262,220.71,220.66,7.64515951]
[1734272829373,2.06,220.71,220.66,7.64515951]
[1734272830573,2.06,220.71,220.67,2.2666]
[1734272832378,4.3261,220.72,220.67,2.2666]
[1734272832978,4.3261,220.72,220.66,5.37845951]
[1734272834178,4.3261,220.72,220.66,7.64505951]
[1734272836380,4.3261,220.72,220.67,2.2666]
[1734272838275,2.06,220.72,220.59,2.994]
[1734272838479,2.06,220.72,220.6,5.11258521]
[1734272838671,2.06,220.72,220.61,5.11258521]
[1734272838875,2.06,220.72,220.62,5.11258521]
[1734272839178,2.2666,220.68,220.62,2.2671]
[1734272839379,2.06,220.67,220.59,2.994]
[1734272839678,2.06,220.66,220.6,5.11188074]
[1734272839873,2.06,220.66,220.62,2.2671]
[1734272841984,4.3267,220.66,220.6,2.2672]
[1734272842184,4.3267,220.66,220.61,5.10974546]
[1734272842383,4.3267,220.66,220.59,2.994]
[1734272842583,2.06,220.66,220.59,5.48226276]
[1734272843083,2.06,220.66,220.48,4.4323]
[1734272843286,1.5351,220.65,220.49,5.11372211]
[1734272843481,1.5351,220.65,220.5,5.11372211]
[1734272843683,1.5351,220.65,220.51,5.11372211]
[1734272843985,1.5351,220.65,220.48,4.4323]
[1734272843986,1.5351,220.65,220.52,5.11196689]
[1734272844185,1.5351,220.65,220.48,4.4323]
[1734272844481,1.5351,220.65,220.53,5.43544769]